fUST/lending_fUST_20250701
["ID","MTS","AMOUNT","RATE_DAILY","PERIOD"]
[368740046,1751338245139,-1412.11,0.00021188,2]
[368740047,1751338245149,-1242.07,0.00021188,2]
[368740048,1751338245159,-1726.49,0.00021188,2]
[368740049,1751338245169,-650.36,0.00021188,2]
[368740050,1751338245179,-788.01,0.00021188,2]
[368740051,1751338245188,-865.15,0.00021188,2]
[368740052,1751338245198,-460.0,0.00021189,2]
[368740053,1751338245207,-460.0,0.00021189,2]
[368740054,1751338245216,-1265.46,0.00021189,2]
[368740055,1751338245227,-460.0,0.00021189,2]
[368740056,1751338245236,-460.0,0.00021189,2]
[368740057,1751338245247,-228.00616971,0.0002119,2]
[368740058,1751338245258,-460.0,0.0002119,2]
[368740059,1751338245267,-460.0,0.0002119,2]
[368740060,1751338245277,-460.0,0.0002119,2]
[368740061,1751338245287,-1171.94,0.0002119,2]
[368740062,1751338245297,-2013.51,0.0002119,2]
[368740063,1751338245310,-1062.51,0.0002119,2]
[368740064,1751338245320,-460.0,0.0002119,2]
[368740065,1751338245330,-622.04,0.0002119,2]
[368740066,1751338245340,-2188.07,0.0002119,2]
[368740067,1751338245350,-725.0,0.0002119,2]
[368740068,1751338245360,-872.03,0.0002119,2]
[368740069,1751338245370,-656.41,0.0002119,2]
[368740070,1751338245380,-500.0,0.00021205,2]
[368740071,1751338245390,-563.56729474,0.00021233,2]
[368740072,1751338245400,-501.02336889,0.00021233,2]
[368740073,1751338245410,-180.0,0.00021239,5]
[368740074,1751338245420,-2767.56525119,0.00021252,2]
[368740075,1751338245429,-2801.37869352,0.00021383,5]
[368740076,1751338245439,-12500.0,0.00021442,2]
[368740077,1751338245449,-1141.9,0.00021462,2]
[368740078,1751338245459,-460.0,0.00021462,2]
[368740079,1751338245468,-1157.34,0.00021462,2]
[368740080,1751338245478,-1412.11,0.00021462,2]
[368740081,1751338245487,-1242.07,0.00021462,2]
[368740082,1751338245498,-1726.49,0.00021462,2]
[368740083,1751338245509,-650.36,0.00021462,2]
[368740084,1751338245518,-788.01,0.00021462,2]
[368740085,1751338245528,-865.15,0.00021462,2]
[368740086,1751338245538,-460.0,0.00021463,2]
[368740087,1751338245548,-460.0,0.00021463,2]
[368740088,1751338245560,-1265.46,0.00021463,2]
[368740089,1751338245570,-460.0,0.00021463,2]
[368740090,1751338245582,-460.0,0.00021463,2]
[368740091,1751338245594,-460.0,0.00021464,2]
[368740092,1751338245604,-460.0,0.00021464,2]
[368740093,1751338245614,-460.0,0.00021464,2]
[368740094,1751338245623,-1171.94,0.00021464,2]
[368740095,1751338245632,-2013.51,0.00021464,2]
[368740096,1751338245643,-1062.51,0.00021464,2]
[368740097,1751338245652,-460.0,0.00021464,2]
[368740098,1751338245663,-622.04,0.00021464,2]
[368740099,1751338245673,-2188.07,0.00021464,2]
[368740100,1751338245683,-725.0,0.00021464,2]
[368740101,1751338245692,-872.03,0.00021464,2]
[368740102,1751338245702,-656.41,0.00021464,2]
[368740103,1751338245712,-2767.56525119,0.00021467,2]
[368740104,1751338245721,-222.0,0.00021505,2]
[368740105,1751338245731,-215.0738,0.00021541,2]
[368740106,1751338245741,-180.0,0.00021545,5]
[368740107,1751338245751,-1166.51381088,0.0002155,4]
[368740109,1751338245900,-356.54,0.00020915,2]
[368740110,1751338245910,-72.88624312,0.0002155,4]
[368740112,1751338245921,-49.75592384,0.0002159,5]
[368740119,1751338246464,-460.0,0.00018175,2]
[368740120,1751338246475,-415.3499226,0.00018175,2]
[368740136,1751338670340,-304.81130661,0.00018075,2]
[368740137,1751338672679,-62.92382583,0.00018075,2]
[368740138,1751338767721,325.227419,0.00013699,2]
[368740141,1751338933472,2720.49589104,0.00017794,2]
[368740142,1751338934687,-164.67953111,0.00018062,2]
[368740143,1751338938554,-267.05460744,0.00018062,2]
[368740144,1751338941305,-221.63119881,0.00018062,2]
[368740145,1751338944207,-163.08417994,0.00018062,2]
[368740146,1751338950726,-254.0251002,0.00018062,2]
[368740147,1751338958077,-178.16576123,0.00018062,2]
[368740148,1751338960900,-160.59957841,0.00018062,2]
[368740149,1751338963132,-159.40526469,0.00018062,2]
[368740150,1751338965064,-171.53104544,0.00018062,2]
[368740151,1751338966638,-200.0,0.00018062,2]
[368740152,1751338970047,-200.0,0.00018062,2]
[368740153,1751338973741,-339.60574898,0.00018062,2]
[368740154,1751338976563,-240.71387479,0.00018062,2]
[368740155,1751338976586,-219.28612521,0.00018075,2]
[368740157,1751338982906,-176.0291421,0.00018075,2]
[368740169,1751339175842,1280.0,0.00024658,120]
[368740170,1751339186733,1280.0,0.00024658,120]
[368740171,1751339196225,1280.0,0.00024658,120]
[368740172,1751339212630,1000.0,0.0001738,2]
[368740173,1751339236102,-243.05113097,0.00018074,2]
[368740174,1751339238769,-136.2315539,0.00018074,2]
[368740177,1751339302176,1280.0,0.00024658,120]
[368740178,1751339320414,1268.748,0.00024658,120]
[368740180,1751339389112,49858.0,0.00024942,120]
[368740214,1751339432561,-463.16904811,0.00018172,2]
[368740216,1751339432571,-465.22672507,0.00018172,2]
[368740218,1751339432582,-300.0,0.00018172,2]
[368740220,1751339432591,-300.0,0.00018172,2]
[368740222,1751339432601,-460.0,0.00018173,2]
[368740223,1751339432612,-212.17,0.00018173,2]
[368740224,1751339432622,-460.0,0.00018173,2]
[368740225,1751339432632,-460.0,0.00018173,2]
[368740226,1751339432641,-460.0,0.00018173,2]
[368740227,1751339432652,-460.0,0.00018173,2]
[368740228,1751339432662,-460.0,0.00018173,2]
[368740229,1751339432672,-460.0,0.00018173,2]
[368740230,1751339432681,-460.0,0.00018173,2]
[368740231,1751339432691,-500.0,0.00018173,2]
[368740232,1751339432701,-460.0,0.00018173,2]
[368740233,1751339432711,-460.0,0.00018173,2]
[368740235,1751339432721,-460.0,0.00018173,2]
[368740237,1751339432730,-460.0,0.00018173,2]
[368740238,1751339432740,-460.0,0.00018173,2]
[368740240,1751339432749,-460.0,0.00018173,2]
[368740243,1751339432760,-460.0,0.00018173,2]
[368740244,1751339432769,-468.28897007,0.00018173,2]
[368740246,1751339432779,-460.0,0.00018173,2]
[368740248,1751339432788,-460.0,0.00018173,2]
[368740251,1751339432798,-460.0,0.00018173,2]
[368740253,1751339432808,-460.0,0.00018173,2]
[368740255,1751339432818,-460.0,0.00018173,2]
[368740257,1751339432828,-460.0,0.00018173,2]
[368740259,1751339432838,-808.85,0.00018173,2]
[368740261,1751339432848,-460.0,0.00018173,2]
[368740263,1751339432858,-460.0,0.00018173,2]
[368740265,1751339432867,-460.0,0.00018173,2]
[368740267,1751339432876,-460.0,0.00018173,2]
[368740269,1751339432887,-819.78,0.00018173,2]
[368740271,1751339432897,-460.0,0.00018173,2]
[368740273,1751339432907,-460.0,0.00018173,2]
[368740275,1751339432916,-460.0,0.00018173,2]
[368740277,1751339432927,-1000.25,0.00018173,2]
[368740279,1751339432937,-460.0,0.00018173,2]
[368740280,1751339432952,-971.91,0.00018173,2]
[368740281,1751339432961,-460.0,0.00018173,2]
[368740282,1751339432970,-656.87426345,0.00018173,2]
[368740283,1751339432982,-222.92573655,0.00018173,2]
[368740284,1751339432993,-460.0,0.00018173,2]
[368740285,1751339433002,-18.4244065,0.00018173,2]
[368740319,1751339438607,-441.5755935,0.00018173,2]
[368740321,1751339438618,-34.38294176,0.00018173,2]
[368740356,1751339438970,2679.28219232,0.00017615,2]
[368740385,1751339439249,2679.28219232,0.00017973,2]
[368740531,1751339440928,-1188.54705824,0.00018173,2]
[368740533,1751339440938,-460.67,0.00018173,2]
[368740535,1751339440951,-460.0,0.00018173,2]
[368740537,1751339440961,-642.45,0.00018173,2]
[368740539,1751339440970,-460.0,0.00018173,2]
[368740541,1751339440980,-460.0,0.00018173,2]
[368740543,1751339440991,-410.10166658,0.00018173,2]
[368740545,1751339441000,-558.17,0.00018173,2]
[368740547,1751339441011,-460.0,0.00018173,2]
[368740549,1751339441021,-775.14,0.00018173,2]
[368740551,1751339441030,-460.0,0.00018174,2]
[368740554,1751339441043,-460.0,0.00018174,2]
[368740555,1751339441052,-460.0,0.00018174,2]
[368740557,1751339441062,-460.0,0.00018174,2]
[368740559,1751339441072,-460.0,0.00018174,2]
[368740562,1751339441083,-460.0,0.00018174,2]
[368740564,1751339441093,-460.0,0.00018174,2]
[368740566,1751339441102,-460.0,0.00018174,2]
[368740568,1751339441113,-460.0,0.00018174,2]
[368740570,1751339441123,-460.0,0.00018174,2]
[368740572,1751339441132,-460.0,0.00018174,2]
[368740573,1751339441143,-460.0,0.00018174,2]
[368740575,1751339441153,-460.0,0.00018174,2]
[368740578,1751339441163,-460.0,0.00018174,2]
[368740579,1751339441172,-460.0,0.00018174,2]
[368740581,1751339441181,-460.0,0.00018174,2]
[368740583,1751339441190,-460.0,0.00018174,2]
[368740585,1751339441199,-460.0,0.00018174,2]
[368740587,1751339441208,-460.0,0.00018174,2]
[368740589,1751339441217,-460.0,0.00018174,2]
[368740591,1751339441227,-460.0,0.00018174,2]
[368740593,1751339441236,-460.0,0.00018174,2]
[368740595,1751339441245,-460.0,0.00018174,2]
[368740597,1751339441255,-460.0,0.00018174,2]
[368740599,1751339441263,-460.0,0.00018174,2]
[368740601,1751339441273,-460.0,0.00018174,2]
[368740603,1751339441282,-460.0,0.00018174,2]
[368740605,1751339441291,-500.0,0.00018174,2]
[368740607,1751339441300,-460.0,0.00018174,2]
[368740609,1751339441310,-1547.21,0.00018174,2]
[368740612,1751339441319,-460.0,0.00018174,2]
[368740614,1751339441329,-478.12,0.00018174,2]
[368740616,1751339441338,-460.0,0.00018174,2]
[368740618,1751339441348,-460.0,0.00018174,2]
[368740620,1751339441357,-460.0,0.00018174,2]
[368740622,1751339441367,-501.73880392,0.00018174,2]
[368740623,1751339441376,-460.0,0.00018174,2]
[368740626,1751339441386,-503.11,0.00018174,2]
[368740628,1751339441396,-558.86,0.00018174,2]
[368740630,1751339441405,-460.0,0.00018174,2]
[368740632,1751339441415,-460.0,0.00018174,2]
[368740634,1751339441424,-365.75775554,0.00018175,2]
[368740636,1751339441435,-305.41443847,0.00018175,2]
[368740638,1751339441446,-460.0,0.00018175,2]
[368740640,1751339441456,-460.0,0.00018175,2]
[368740642,1751339441466,-211.02254945,0.00018175,2]
[368740644,1751339441476,-157.1356908,0.00018175,2]
[368740646,1751339441485,-480.0,0.00018175,2]
[368740648,1751339441495,-460.0,0.00018175,2]
[368740650,1751339441504,-460.0,0.00018175,2]
[368740652,1751339441513,-460.0,0.00018175,2]
[368740654,1751339441523,-460.0,0.00018175,2]
[368740656,1751339441532,-460.0,0.00018175,2]
[368740658,1751339441541,-460.0,0.00018175,2]
[368740660,1751339441550,-460.0,0.00018175,2]
[368740662,1751339441560,-460.0,0.00018175,2]
[368740664,1751339441569,-460.0,0.00018175,2]
[368740666,1751339441579,-460.0,0.00018175,2]
[368740668,1751339441588,-460.0,0.00018175,2]
[368740670,1751339441597,-2679.28219232,0.00018247,2]
[368740672,1751339441607,-2679.28219232,0.00018399,2]
[368740674,1751339441616,-460.0,0.00018447,2]
[368740676,1751339441625,-460.0,0.00018447,2]
[368740678,1751339441635,-460.0,0.00018447,2]
[368740680,1751339441644,-470.96,0.00018447,2]
[368740682,1751339441654,-460.0,0.00018447,2]
[368740683,1751339441666,-460.0,0.00018447,2]
[368740685,1751339441676,-819.78,0.00018447,2]
[368740687,1751339441685,-460.0,0.00018447,2]
[368740689,1751339441695,-1000.25,0.00018447,2]
[368740691,1751339441705,-971.91,0.00018447,2]
[368740692,1751339441715,-879.8,0.00018447,2]
[368740693,1751339441724,-1222.93,0.00018447,2]
[368740694,1751339441734,-460.67,0.00018447,2]
[368740695,1751339441744,-460.0,0.00018447,2]
[368740696,1751339441753,-642.45,0.00018447,2]
[368740697,1751339441763,-460.0,0.00018447,2]
[368740698,1751339441774,-558.17,0.00018447,2]
[368740699,1751339441783,-482.94,0.00018448,2]
[368740700,1751339441793,-460.0,0.00018448,2]
[368740701,1751339441804,-460.0,0.00018448,2]
[368740702,1751339441814,-460.0,0.00018448,2]
[368740703,1751339441824,-460.0,0.00018448,2]
[368740704,1751339441833,-460.0,0.00018448,2]
[368740705,1751339441843,-209.05897763,0.00018448,2]
[368740706,1751339441853,-1547.21,0.00018448,2]
[368740707,1751339441864,-478.12,0.00018448,2]
[368740708,1751339441873,-460.0,0.00018448,2]
[368740709,1751339441882,-503.11,0.00018448,2]
[368740710,1751339441892,-558.86,0.00018448,2]
[368740711,1751339442032,-460.0,0.00018448,2]
[368740712,1751339442043,-460.0,0.00018448,2]
[368740713,1751339442052,-460.0,0.00018449,2]
[368740714,1751339442062,-242.86350728,0.00018449,2]
[368740715,1751339442072,-527.88,0.00018449,2]
[368740716,1751339442081,-1276.06,0.00018449,2]
[368740717,1751339442091,-460.0,0.00018449,2]
[368740718,1751339442101,-460.0,0.00018449,2]
[368740719,1751339442111,-1122.93,0.00018449,2]
[368740720,1751339442122,-460.0,0.00018449,2]
[368740721,1751339442132,-2310.79,0.00018449,2]
[368740722,1751339442142,-921.6,0.00018449,2]
[368740723,1751339442153,-460.0,0.00018721,2]
[368740724,1751339442163,-460.0,0.00018721,2]
[368740725,1751339442173,-460.0,0.00018721,2]
[368740726,1751339442182,-460.0,0.00018721,2]
[368740727,1751339442192,-819.78,0.00018721,2]
[368740728,1751339442202,-460.0,0.00018721,2]
[368740729,1751339442212,-928.2430282,0.00018721,2]
[368740768,1751339443643,-460.0,0.00018173,2]
[368740769,1751339443653,-333.00696487,0.00018447,2]
[368740777,1751339446622,-442.13303513,0.00018447,2]
[368740778,1751339446632,-460.0,0.00018447,2]
[368740779,1751339446642,-72.0069718,0.00018721,2]
[368740780,1751339446652,-971.91,0.00018721,2]
[368740781,1751339446661,-879.8,0.00018721,2]
[368740782,1751339446671,-1222.93,0.00018721,2]
[368740783,1751339446681,-460.67,0.00018721,2]
[368740784,1751339446690,-460.0,0.00018721,2]
[368740785,1751339446699,-642.45,0.00018721,2]
[368740786,1751339446709,-460.0,0.00018721,2]
[368740787,1751339446718,-61.74803632,0.00018721,2]
[368740791,1751339593953,387.828,0.00017629,2]
[368740793,1751339809692,-299.91311905,0.00018072,2]
[368740794,1751339813169,-179.17117521,0.00018072,2]
[368740795,1751339815437,-78.67061968,0.00018072,2]
[368740797,1751339862114,318.030176,0.00013699,2]
[368740800,1751339921534,2841.5655484,0.00017665,2]
[368740801,1751339921873,2841.5655484,0.00017968,2]
[368740804,1751340094673,-172.35929982,0.00018071,2]
[368740805,1751340096776,-157.20715644,0.00018071,2]
[368740806,1751340098352,-229.53296265,0.00018071,2]
[368740808,1751340274398,166.69,0.000161,2]
[368740809,1751340380603,-188.78716171,0.0001807,2]
[368740810,1751340383442,-196.26695015,0.0001807,2]
[368740811,1751340390899,-145.35368671,0.0001807,2]
[368740812,1751340415335,-151.37019777,0.00018162,2]
[368740813,1751340415357,-169.85178669,0.00018168,2]
[368740814,1751340439082,-300.0,0.00018167,2]
[368740815,1751340439105,-1381.848,0.00018168,2]
[368740816,1751340439127,-130.14821331,0.00018168,2]
[368740817,1751340439151,-1200.0,0.00018168,2]
[368740818,1751340439174,-167.5230851,0.00018168,2]
[368740825,1751340552633,1160.0,0.00024955,60]
[368740855,1751340631680,-383.80397845,0.00018167,2]
[368740856,1751340631690,-300.0,0.00018167,2]
[368740857,1751340631701,-300.0,0.00018167,2]
[368740858,1751340631711,-1183.0,0.00018167,2]
[368740859,1751340631721,-460.0,0.00018167,2]
[368740860,1751340631732,-460.0,0.00018167,2]
[368740861,1751340631742,-203.07475524,0.00018167,2]
[368740862,1751340631752,-460.0,0.00018167,2]
[368740863,1751340631761,-1032.4769149,0.00018168,2]
[368740864,1751340631771,-1006.73,0.00018168,2]
[368740865,1751340631781,-460.0,0.00018168,2]
[368740866,1751340631790,-460.0,0.00018168,2]
[368740867,1751340631800,-489.78757617,0.00018168,2]
[368740868,1751340631812,-721.91242383,0.00018168,2]
[368740869,1751340631822,-460.0,0.00018168,2]
[368740871,1751340631832,-460.0,0.00018168,2]
[368740872,1751340631842,-460.0,0.00018168,2]
[368740873,1751340631852,-460.0,0.00018168,2]
[368740874,1751340631864,-460.0,0.00018168,2]
[368740875,1751340631876,-460.0,0.00018168,2]
[368740876,1751340631887,-595.46,0.00018168,2]
[368740877,1751340631897,-809.65,0.00018168,2]
[368740878,1751340631907,-699.24,0.00018168,2]
[368740879,1751340631916,-460.0,0.00018168,2]
[368740880,1751340631926,-460.0,0.00018168,2]
[368740881,1751340631936,-568.01,0.00018168,2]
[368740882,1751340631946,-460.0,0.00018168,2]
[368740883,1751340631956,-500.0,0.00018168,2]
[368740884,1751340631966,-500.0,0.00018168,2]
[368740885,1751340631975,-500.0,0.00018168,2]
[368740886,1751340631985,-500.0,0.00018168,2]
[368740887,1751340631995,-500.0,0.00018168,2]
[368740888,1751340632006,-469.32820682,0.00018168,2]
[368740889,1751340632015,-500.0,0.00018168,2]
[368740890,1751340632025,-500.0,0.00018168,2]
[368740891,1751340632034,-500.0,0.00018168,2]
[368740892,1751340632045,-500.0,0.00018168,2]
[368740893,1751340632054,-500.0,0.00018168,2]
[368740894,1751340632064,-500.0,0.00018168,2]
[368740895,1751340632074,-500.0,0.00018168,2]
[368740896,1751340632084,-500.0,0.00018168,2]
[368740897,1751340632094,-500.0,0.00018168,2]
[368740898,1751340632105,-500.0,0.00018168,2]
[368740899,1751340632115,-500.0,0.00018168,2]
[368740900,1751340632126,-500.0,0.00018168,2]
[368740901,1751340632137,-500.0,0.00018168,2]
[368740902,1751340632148,-500.0,0.00018168,2]
[368740903,1751340632157,-500.0,0.00018168,2]
[368740904,1751340632167,-314.40437438,0.00018168,2]
[368740905,1751340632178,-500.0,0.00018168,2]
[368740906,1751340632188,-500.0,0.00018168,2]
[368740907,1751340632198,-500.0,0.00018168,2]
[368740908,1751340632208,-500.0,0.00018168,2]
[368740909,1751340632218,-500.0,0.00018168,2]
[368740910,1751340632228,-500.0,0.00018168,2]
[368740911,1751340632238,-500.0,0.00018168,2]
[368740912,1751340632248,-500.0,0.00018168,2]
[368740913,1751340632258,-500.0,0.00018168,2]
[368740914,1751340632268,-500.0,0.00018168,2]
[368740915,1751340632278,-590.88351675,0.00018168,2]
[368740916,1751340632287,-460.0,0.00018169,2]
[368740917,1751340632297,-995.03,0.00018169,2]
[368740918,1751340632307,-460.0,0.00018169,2]
[368740919,1751340632316,-460.0,0.00018169,2]
[368740920,1751340632325,-460.0,0.00018169,2]
[368740921,1751340632335,-460.0,0.00018169,2]
[368740922,1751340632345,-555.33,0.00018169,2]
[368740923,1751340632355,-1061.22,0.00018169,2]
[368740924,1751340632364,-1434.14,0.00018169,2]
[368740925,1751340632374,-460.0,0.00018169,2]
[368740926,1751340632385,-460.0,0.00018169,2]
[368740927,1751340632394,-558.97,0.00018169,2]
[368740928,1751340632404,-499.25,0.00018169,2]
[368740929,1751340632415,-460.0,0.00018169,2]
[368740930,1751340632425,-460.0,0.00018169,2]
[368740931,1751340632435,-460.0,0.00018169,2]
[368740932,1751340632445,-460.0,0.00018169,2]
[368740933,1751340632454,-460.0,0.00018169,2]
[368740934,1751340632463,-462.49894166,0.0001817,2]
[368740935,1751340632472,-293.97864436,0.0001817,2]
[368740936,1751340632482,-460.0,0.0001817,2]
[368740937,1751340632491,-562.03,0.0001817,2]
[368740938,1751340632503,-460.94527182,0.0001817,2]
[368740939,1751340632513,-460.0,0.0001817,2]
[368740940,1751340632522,-461.54475305,0.0001817,2]
[368740941,1751340632532,-460.0,0.0001817,2]
[368740942,1751340632543,-460.0,0.0001817,2]
[368740943,1751340632553,-460.0,0.0001817,2]
[368740944,1751340632563,-460.0,0.0001817,2]
[368740945,1751340632572,-460.0,0.0001817,2]
[368740946,1751340632581,-460.0,0.0001817,2]
[368740947,1751340632592,-460.0,0.0001817,2]
[368740948,1751340632602,-475.09,0.0001817,2]
[368740949,1751340632611,-460.0,0.0001817,2]
[368740950,1751340632622,-606.8,0.0001817,2]
[368740951,1751340632632,-460.0,0.0001817,2]
[368740952,1751340632643,-460.0,0.0001817,2]
[368740953,1751340632653,-411.26658203,0.0001817,2]
[368740954,1751340632664,-465.16,0.0001817,2]
[368740955,1751340632675,-460.0,0.0001817,2]
[368740956,1751340632684,-446.7997679,0.0001817,2]
[368740957,1751340632695,-460.0,0.0001817,2]
[368740958,1751340632705,-460.0,0.0001817,2]
[368740959,1751340632715,-460.0,0.0001817,2]
[368740960,1751340632724,-460.0,0.0001817,2]
[368740961,1751340632736,-460.0,0.0001817,2]
[368740962,1751340632749,-466.8400729,0.0001817,2]
[368740963,1751340632759,-460.0,0.0001817,2]
[368740964,1751340632768,-955.88,0.0001817,2]
[368740965,1751340632778,-460.0,0.0001817,2]
[368740966,1751340632788,-563.3,0.0001817,2]
[368740967,1751340632798,-460.0,0.0001817,2]
[368740968,1751340632807,-460.0,0.0001817,2]
[368740969,1751340632818,-460.0,0.0001817,2]
[368740970,1751340632827,-460.0,0.0001817,2]
[368740971,1751340632952,-460.0,0.0001817,2]
[368740972,1751340632962,-460.0,0.0001817,2]
[368740973,1751340632973,-209.03550675,0.0001817,2]
[368740975,1751340637673,-364.52002253,0.0001817,2]
[368740976,1751340637726,-900.76597317,0.0001817,2]
[368740977,1751340637780,-1310.14849755,0.0001817,2]
[368740978,1751340637790,-566.57,0.0001817,2]
[368740979,1751340637800,-460.0,0.0001817,2]
[368740980,1751340637809,-460.0,0.0001817,2]
[368740981,1751340637819,-460.0,0.0001817,2]
[368740982,1751340637828,-460.0,0.00018171,2]
[368740983,1751340637838,-460.0,0.00018171,2]
[368740984,1751340637848,-460.0,0.00018171,2]
[368740985,1751340637858,-460.0,0.00018171,2]
[368740986,1751340637867,-461.30621874,0.00018171,2]
[368740987,1751340637876,-460.0,0.00018171,2]
[368740988,1751340637886,-460.0,0.00018171,2]
[368740989,1751340637896,-460.0,0.00018171,2]
[368740990,1751340637906,-460.0,0.00018171,2]
[368740991,1751340637915,-460.0,0.00018171,2]
[368740992,1751340637925,-567.84,0.00018171,2]
[368740993,1751340637935,-460.0,0.00018171,2]
[368740994,1751340637944,-460.0,0.00018171,2]
[368740995,1751340637954,-464.46966545,0.00018172,2]
[368740996,1751340637963,-461.74895422,0.00018172,2]
[368740997,1751340637973,-460.0,0.00018172,2]
[368740998,1751340637983,-460.0,0.00018172,2]
[368740999,1751340637992,-460.0,0.00018172,2]
[368741000,1751340638002,-463.57587107,0.00018172,2]
[368741001,1751340638012,-460.0,0.00018172,2]
[368741002,1751340638021,-525.4,0.00018172,2]
[368741003,1751340638031,-460.0,0.00018172,2]
[368741004,1751340638041,-460.0,0.00018172,2]
[368741005,1751340638050,-460.0,0.00018172,2]
[368741006,1751340638060,-466.65606131,0.00018172,2]
[368741007,1751340638070,-460.0,0.00018172,2]
[368741008,1751340638080,-460.0,0.00018172,2]
[368741009,1751340638090,-460.0,0.00018172,2]
[368741010,1751340638100,-33.4142074,0.00018172,2]
[368741011,1751340638268,-426.5857926,0.00018172,2]
[368741012,1751340638289,-460.0,0.00018172,2]
[368741013,1751340638310,-460.0,0.00018172,2]
[368741014,1751340638332,-460.0,0.00018172,2]
[368741015,1751340638356,-551.07,0.00018172,2]
[368741016,1751340638378,-460.0,0.00018172,2]
[368741017,1751340638400,-500.0,0.00018172,2]
[368741018,1751340638422,-460.0,0.00018172,2]
[368741019,1751340638442,-460.0,0.00018172,2]
[368741020,1751340638463,-186.58400522,0.00018172,2]
[368741021,1751340638483,-366.07599478,0.00018172,2]
[368741022,1751340638493,-529.96,0.00018172,2]
[368741023,1751340638504,-460.0,0.00018172,2]
[368741024,1751340638513,-591.44,0.00018172,2]
[368741025,1751340638523,-460.0,0.00018172,2]
[368741026,1751340638533,-460.0,0.00018172,2]
[368741027,1751340638543,-460.0,0.00018172,2]
[368741028,1751340638553,-536.26,0.00018172,2]
[368741029,1751340638562,-460.0,0.00018172,2]
[368741030,1751340638572,-460.0,0.00018172,2]
[368741031,1751340638581,-460.0,0.00018172,2]
[368741032,1751340638590,-460.0,0.00018172,2]
[368741033,1751340638600,-1357.23,0.00018172,2]
[368741034,1751340638610,-484.04,0.00018172,2]
[368741035,1751340638619,-460.48532061,0.00018172,2]
[368741036,1751340638629,-460.0,0.00018172,2]
[368741037,1751340638638,-460.0,0.00018172,2]
[368741038,1751340638648,-460.0,0.00018172,2]
[368741039,1751340638657,-704.06,0.00018172,2]
[368741040,1751340638667,-1177.3,0.00018172,2]
[368741041,1751340638676,-528.74,0.00018172,2]
[368741042,1751340638685,-460.0,0.00018172,2]
[368741043,1751340638694,-460.0,0.00018172,2]
[368741044,1751340638703,-472.5,0.00018172,2]
[368741045,1751340638713,-542.14,0.00018172,2]
[368741046,1751340638723,-472.43899319,0.00018173,2]
[368741047,1751340638734,-460.0,0.00018173,2]
[368741048,1751340638743,-460.0,0.00018173,2]
[368741049,1751340638753,-463.43866313,0.00018173,2]
[368741050,1751340638762,-462.94363414,0.00018173,2]
[368741051,1751340638772,-460.0,0.00018173,2]
[368741052,1751340638782,-460.0,0.00018173,2]
[368741053,1751340638791,-463.16011796,0.00018173,2]
[368741054,1751340638802,-476.14,0.00018173,2]
[368741055,1751340638811,-466.8796724,0.00018173,2]
[368741056,1751340638821,-2497.72,0.00018173,2]
[368741057,1751340638830,-989.6,0.00018173,2]
[368741058,1751340638840,-575.29,0.00018173,2]